bitfinex/quotes_BTCUSD_20240815
["timestamp","ask_amount","ask_price","bid_price","bid_amount"]
[1723751975751,0.25733181,57177.0,57163.0,0.001]
[1723751975954,0.419844,57164.0,57163.0,0.001]
[1723751976157,0.59139854,57164.0,57163.0,0.001]
[1723751976362,0.67852689,57164.0,57163.0,0.001]
[1723751976570,0.92819854,57164.0,57163.0,0.001]
[1723751976768,0.78825054,57164.0,57151.0,0.1887]
[1723751976973,0.17155454,57163.0,57151.0,0.1887]
[1723751977182,0.1,57175.0,57158.0,0.08577727]
[1723751977183,0.343,57170.0,57158.0,0.08577727]
[1723751977387,0.17155454,57169.0,57151.0,0.51352001]
[1723751977568,0.17155454,57169.0,57151.0,0.27447727]
[1723751977569,0.279881,57167.0,57151.0,0.27447727]
[1723751977769,0.17155454,57166.0,57151.0,0.27447727]
[1723751977970,0.139948,57164.0,57163.0,0.004]
[1723751978176,0.70044089,57175.0,57163.0,0.004]
[1723751978381,0.419844,57164.0,57163.0,0.004]
[1723751978583,0.59139854,57164.0,57163.0,0.004]
[1723751978782,0.94349854,57164.0,57163.0,0.004]
[1723751979191,1.23789854,57164.0,57163.0,0.004]
[1723751979393,1.51779454,57164.0,57163.0,0.004]
[1723751979594,1.60480332,57164.0,57163.0,0.004]
[1723751979795,1.60480332,57164.0,57144.0,0.5115]
[1723751979796,0.139956,57161.0,57145.0,0.00178402]
[1723751979998,0.17155454,57160.0,57145.0,0.00178402]
[1723751980212,0.139964,57158.0,57146.0,0.05990613]
[1723751980438,0.17155454,57160.0,57144.0,0.5115]
[1723751980664,0.139984,57150.0,57144.0,0.5115]
[1723751980867,0.17155454,57157.0,57141.0,0.0082]
[1723751980868,0.420006,57142.0,57141.0,0.0082]
[1723751981064,0.70001,57142.0,57141.0,0.0082]
[1723751981274,0.17155454,57147.0,57141.0,0.0082]
[1723751981686,0.140002,57142.0,57141.0,0.0082]
[1723751982090,0.2648,57158.0,57141.0,0.0082]
[1723751982091,0.1821,57156.0,57141.0,0.0082]
[1723751982326,0.17155454,57155.0,57145.0,0.004]
[1723751982535,0.139978,57152.0,57146.0,0.1859]
[1723751982713,0.3552,57162.0,57146.0,0.1859]
[1723751982714,0.17155454,57151.0,57146.0,0.1859]
[1723751982950,0.139989,57147.0,57146.0,0.1859]
[1723751983158,0.17155454,57151.0,57146.0,0.1859]
[1723751983286,0.17155454,57151.0,57141.0,0.3495]
[1723751983486,0.18870999,57151.0,57141.0,0.3495]
[1723751983689,0.559873,57156.0,57141.0,0.3485]
[1723751983925,0.17155454,57154.0,57141.0,0.43427727]
[1723751984096,0.006,57147.0,57146.0,0.001]
[1723751984861,0.31754354,57147.0,57146.0,0.001]
[1723751985067,0.87750154,57147.0,57146.0,0.001]
[1723751985319,0.87750154,57147.0,57141.0,0.0082]
[1723751985320,0.420006,57142.0,57141.0,0.0082]
[1723751985524,1.15156854,57142.0,57141.0,0.0082]
[1723751985718,0.99456454,57142.0,57141.0,0.0092]
[1723751985918,0.59156054,57142.0,57141.0,0.0092]
[1723751986122,0.61456054,57142.0,57141.0,0.0082]
[1723751986325,0.69646154,57142.0,57141.0,0.0092]
[1723751986532,0.89456454,57142.0,57141.0,0.0082]
[1723751986952,1.17456854,57142.0,57141.0,0.0082]
[1723751987158,1.73182539,57142.0,57141.0,0.0082]
[1723751987980,1.73482539,57142.0,57141.0,0.0082]
[1723751988178,1.73482539,57142.0,57141.0,0.00812]
[1723751988811,1.73682539,57142.0,57141.0,0.00812]
[1723751989014,2.01682939,57142.0,57141.0,0.00812]
[1723751989161,2.01382939,57142.0,57141.0,0.00812]
[1723751989798,2.01182939,57142.0,57141.0,0.00812]
[1723751989995,1.62836854,57142.0,57141.0,0.00912]
[1723751990243,1.64236854,57142.0,57141.0,0.01012]
[1723751990446,1.64236854,57142.0,57141.0,0.00912]
[1723751990447,1.62836854,57142.0,57141.0,0.00912]
[1723751990650,1.62836854,57142.0,57141.0,0.01012]
[1723751990873,1.64236854,57142.0,57141.0,0.01012]
[1723751991078,1.80660539,57142.0,57141.0,0.01012]
[1723751991281,1.79260539,57142.0,57141.0,0.00912]
[1723751991701,1.79260539,57142.0,57141.0,0.01012]
[1723751991702,1.64236854,57142.0,57141.0,0.01012]
[1723751991872,1.05936054,57142.0,57141.0,0.01012]
[1723751992098,1.33936454,57142.0,57141.0,0.01012]
[1723751992528,0.700082,57136.0,57135.0,0.0034048]
[1723751992721,1.479669,57127.0,57126.0,0.0082]
[1723751992924,2.04447754,57127.0,57126.0,1e-06]
[1723751993147,2.75890796,57127.0,57126.0,1e-06]
[1723751993384,2.22175396,57127.0,57126.0,1e-06]
[1723751993582,2.14007781,57127.0,57126.0,1e-06]
[1723751993994,0.73459254,57127.0,57126.0,0.001001]
[1723751994206,0.70286954,57127.0,57126.0,0.001001]
[1723751994412,0.59186954,57127.0,57126.0,1e-06]
[1723751994619,0.31179254,57127.0,57126.0,1e-06]
[1723751994836,0.18575454,57127.0,57126.0,1e-06]
[1723751995040,0.0142,57127.0,57126.0,1e-06]
[1723751995273,0.0142,57127.0,57126.0,0.454142]
[1723751995479,0.01825779,57180.0,57126.0,0.454142]
[1723751995480,0.3365,57159.0,57141.0,0.5112]
[1723751995698,0.51466362,57143.0,57141.0,0.5112]
[1723751995896,0.3092,57145.0,57130.0,0.5156]
[1723751996353,0.00090311,57142.0,57130.0,0.5156]
[1723751996557,0.14001,57139.0,57130.0,0.5156]
[1723751996763,0.280077,57127.0,57126.0,0.001001]
[1723751996968,0.31159254,57127.0,57126.0,0.001001]
[1723751997188,0.08677727,57143.0,57126.0,0.001001]
[1723751997189,0.140009,57139.0,57127.0,0.3365]
[1723751997376,0.17155454,57138.0,57128.0,0.184]
[1723751997584,0.140015,57137.0,57128.0,0.184]
[1723751997759,0.009,57145.0,57128.0,0.26977727]
[1723751998022,0.279998,57144.0,57128.0,0.26977727]
[1723751998234,0.280014,57140.0,57128.0,0.184]
[1723751998448,0.021,57145.0,57132.0,0.08577727]
[1723751998650,0.009,57145.0,57134.0,0.3291]
[1723751998857,0.14,57143.0,57135.0,0.04148773]
[1723752000271,0.280041,57135.0,57129.0,0.3255]
[1723752000513,0.17155454,57141.0,57128.0,0.184]
[1723752000514,0.140027,57132.0,57128.0,0.184]
[1723752000787,0.31158154,57132.0,57128.0,0.184]
[1723752000994,0.17155454,57132.0,57128.0,0.184]
[1723752001228,0.23071729,57132.0,57128.0,0.184]
[1723752001427,0.17155454,57132.0,57128.0,0.184]
[1723752001635,0.00250311,57142.0,57128.0,0.184]
[1723752001834,0.17155454,57141.0,57128.0,0.184]
[1723752002050,0.140016,57136.0,57128.0,0.184]
[1723752002309,0.140038,57127.0,57126.0,1e-06]
[1723752002510,0.17155454,57135.0,57126.0,1e-06]
[1723752002968,0.280049,57133.0,57126.0,1e-06]
[1723752003175,0.182,57139.0,57126.0,1e-06]
[1723752003176,0.420115,57127.0,57126.0,1e-06]
[1723752003395,0.26730311,57142.0,57121.0,0.192]
[1723752003396,0.014,57136.0,57121.0,0.192]
[1723752003671,0.014,57136.0,57135.0,0.22579627]
[1723752003918,0.00250311,57142.0,57135.0,0.61777727]
[1723752004179,0.00250311,57142.0,57135.0,0.532]
[1723752005565,0.00250311,57142.0,57136.0,0.08577727]
[1723752005979,0.00250311,57142.0,57141.0,0.140004]
[1723752006189,0.00250311,57142.0,57141.0,0.943413]
[1723752006809,0.00250311,57142.0,57141.0,1.67698554]
[1723752007010,0.51466362,57162.0,57159.0,0.3321]
[1723752007224,0.51466362,57162.0,57153.0,0.3321]
[1723752007225,0.17155454,57161.0,57153.0,0.3321]
[1723752007423,0.00090311,57164.0,57154.0,0.08577727]
[1723752007629,0.00090311,57164.0,57153.0,0.3321]
[1723752007835,0.139951,57163.0,57153.0,0.3321]
[1723752008045,0.17155454,57163.0,57148.0,0.3321]
[1723752008266,0.00090311,57164.0,57143.0,0.3321]
[1723752008267,0.3063,57158.0,57143.0,0.3321]
[1723752008465,0.00290311,57142.0,57134.0,0.3321]
[1723752008689,0.00190311,57142.0,57134.0,0.3321]
[1723752008895,0.00090311,57142.0,57141.0,0.08577727]
[1723752009127,0.00090311,57142.0,57141.0,1.19854481]
[1723752009324,0.00090311,57142.0,57141.0,1.76056281]
[1723752009528,0.00090311,57142.0,57141.0,2.0627731]
[1723752009747,0.51556673,57164.0,57162.0,0.1891]
[1723752009945,0.17155454,57163.0,57155.0,0.1891]
[1723752010151,0.47785454,57162.0,57147.0,0.5212]
[1723752010356,0.00090311,57164.0,57151.0,0.08577727]
[1723752010604,0.139958,57160.0,57148.0,0.08577727]
[1723752010746,0.36705454,57163.0,57147.0,0.5212]
[1723752010950,0.00090311,57164.0,57147.0,0.5212]
[1723752010951,0.00090311,57164.0,57154.0,0.08577727]
[1723752011150,0.79456562,57163.0,57148.0,0.13789727]
[1723752011352,0.17245765,57164.0,57149.0,0.139984]
[1723752011529,0.00090311,57164.0,57162.0,0.08577727]
[1723752011727,0.00090311,57164.0,57155.0,0.5272]
[1723752011928,0.45235365,57164.0,57155.0,0.5272]
[1723752012153,0.45235365,57164.0,57149.0,0.06590973]
[1723752012154,0.13997,57155.0,57150.0,0.1932]
[1723752012363,0.007,57163.0,57151.0,0.3115]
[1723752012575,0.013,57163.0,57151.0,0.3115]
[1723752013035,0.00090311,57164.0,57151.0,0.3115]
[1723752013036,0.139964,57158.0,57151.0,0.3115]
[1723752013203,0.139992,57146.0,57141.0,0.1971]
[1723752013408,0.279945,57154.0,57141.0,0.1971]
[1723752013566,0.60865454,57153.0,57134.0,0.1971]
[1723752013760,0.60865454,57153.0,57136.0,0.140015]
[1723752013761,0.139985,57149.0,57136.0,0.140015]
[1723752013963,0.60865454,57153.0,57134.0,0.1971]
[1723752013964,0.17155454,57148.0,57134.0,0.1971]
[1723752014172,0.280003,57143.0,57134.0,0.1971]
[1723752014381,0.17155454,57148.0,57132.0,0.4787]
[1723752014382,0.280015,57140.0,57132.0,0.4787]
[1723752014596,0.280035,57136.0,57128.0,0.497021]
[1723752014842,0.140033,57129.0,57128.0,0.000821]
[1723752015091,0.59165454,57129.0,57128.0,0.000821]
[1723752015375,0.3072,57140.0,57128.0,0.000821]
[1723752015584,0.3082,57140.0,57132.0,0.004]
[1723752015782,0.140022,57134.0,57132.0,0.004]
[1723752015989,0.140025,57133.0,57128.0,0.000821]
[1723752016196,0.140033,57129.0,57128.0,0.000821]
[1723752016395,0.59265454,57129.0,57128.0,0.008821]
[1723752016606,0.31258754,57129.0,57128.0,0.005821]
[1723752016821,0.59265454,57129.0,57128.0,0.005821]
[1723752017055,1.40282154,57129.0,57128.0,0.005821]
[1723752017263,0.91645454,57129.0,57128.0,0.005821]
[1723752017472,0.17255454,57129.0,57128.0,0.005821]
[1723752017728,0.17255454,57129.0,57128.0,0.000821]
[1723752017729,0.59165454,57129.0,57128.0,0.000821]
[1723752018196,0.89472154,57129.0,57128.0,0.000821]
[1723752018691,0.89572154,57129.0,57128.0,0.000821]
[1723752018928,0.89672154,57129.0,57128.0,0.000821]
[1723752019158,0.002,57129.0,57128.0,0.000821]
[1723752019457,0.002,57129.0,57128.0,0.187021]
[1723752019716,0.002,57129.0,57128.0,0.3762091]
[1723752019956,0.002,57129.0,57128.0,0.187021]
[1723752020916,0.001,57129.0,57128.0,0.000821]
[1723752021698,0.00090311,57132.0,57128.0,0.000821]
[1723752021907,0.001,57129.0,57128.0,0.000821]
[1723752022545,0.00090311,57132.0,57128.0,0.000821]
[1723752022778,0.00090311,57132.0,57128.0,0.012821]
[1723752022779,0.001,57129.0,57128.0,0.012821]
[1723752023451,0.00190311,57132.0,57128.0,0.001821]
[1723752023636,0.00190311,57132.0,57130.0,0.08577727]
[1723752023845,0.00190311,57132.0,57131.0,0.36735454]
[1723752024052,0.436967,57157.0,57142.0,0.139999]
[1723752024284,0.23591998,57161.0,57142.0,0.139999]
[1723752024285,0.51466362,57161.0,57156.0,0.08577727]
[1723752024503,0.51466362,57161.0,57152.0,0.1958]
[1723752024719,0.00090311,57164.0,57153.0,0.02815773]
[1723752024927,0.00090311,57164.0,57152.0,0.1958]
[1723752024928,0.17155454,57163.0,57152.0,0.1958]
[1723752025139,0.17155454,57163.0,57148.0,0.2943]
[1723752025349,0.139956,57161.0,57150.0,0.08577727]
[1723752025572,0.00090311,57164.0,57156.0,0.08577727]
[1723752025773,0.007,57161.0,57156.0,0.08577727]
[1723752025993,0.021,57161.0,57156.0,0.001]
[1723752026189,0.007,57161.0,57152.0,0.001]
[1723752026402,0.007,57161.0,57153.0,0.02051836]
[1723752026608,0.007,57161.0,57152.0,0.001]
[1723752026609,0.139969,57156.0,57152.0,0.001]
[1723752026816,0.17155454,57160.0,57152.0,0.001]
[1723752027031,0.13998,57151.0,57150.0,0.001]
[1723752027260,1.16255454,57151.0,57150.0,0.002]
[1723752027461,1.44251454,57151.0,57150.0,0.002]
[1723752027695,1.16255454,57151.0,57150.0,0.002]
[1723752027953,0.88259454,57151.0,57150.0,0.001]
[1723752028229,0.139985,57149.0,57136.0,0.22579327]
[1723752028466,0.139997,57144.0,57136.0,0.08577727]
[1723752028716,0.17155454,57149.0,57136.0,0.08577727]
[1723752028948,0.139988,57148.0,57136.0,0.08577727]
[1723752029185,0.279975,57148.0,57136.0,0.08577727]
[1723752029465,0.17155454,57149.0,57136.0,0.25733181]
[1723752029708,0.004,57144.0,57143.0,0.2931]
[1723752029950,0.00090311,57164.0,57143.0,0.2931]
[1723752029951,0.51466362,57161.0,57145.0,0.181]
[1723752030185,0.51466362,57161.0,57150.0,0.2931]
[1723752030421,0.17155454,57163.0,57150.0,0.573064]
[1723752030695,0.17155454,57163.0,57150.0,0.2931]
[1723752030933,0.279907,57162.0,57150.0,0.2931]
[1723752031205,0.17155454,57162.0,57150.0,0.2931]
[1723752031434,0.28080111,57164.0,57150.0,0.2941]
[1723752031435,0.139964,57158.0,57150.0,0.2941]
[1723752031636,0.17155454,57157.0,57150.0,0.32351]
[1723752031841,0.17155454,57157.0,57150.0,0.2931]
[1723752032049,0.17155454,57157.0,57150.0,0.2941]
[1723752032050,0.45148654,57157.0,57150.0,0.2941]
[1723752032266,0.005,57162.0,57150.0,0.2941]
[1723752032466,0.144953,57162.0,57150.0,0.2951]
[1723752032669,0.005,57162.0,57150.0,0.3516078]
[1723752032901,0.005,57162.0,57150.0,0.001]
[1723752033170,0.139958,57160.0,57150.0,0.001]
[1723752033385,0.31151354,57160.0,57146.0,0.14349003]
[1723752033599,0.002,57157.0,57150.0,0.001]
[1723752034256,0.45147254,57160.0,57150.0,0.001]
[1723752034416,0.139965,57157.0,57150.0,0.001]
[1723752034783,0.17155454,57159.0,57150.0,0.001]
[1723752034926,0.17155454,57159.0,57150.0,0.01020477]
[1723752034927,0.139962,57158.0,57150.0,0.01020477]
[1723752035320,0.279935,57156.0,57146.0,0.10104773]
[1723752035545,0.13998,57151.0,57150.0,0.001]
[1723752036004,0.13998,57151.0,57145.0,0.50121803]
[1723752036005,0.17155454,57155.0,57145.0,0.50121803]
[1723752036226,0.001,57158.0,57147.0,0.08577727]
[1723752036429,0.3069,57160.0,57146.0,0.0501218]
[1723752036430,0.55147654,57159.0,57146.0,0.0501218]
[1723752036665,0.002,57157.0,57145.0,0.4901]
[1723752036884,0.13998,57151.0,57145.0,0.181]
[1723752037107,0.139971,57155.0,57145.0,0.181]
[1723752037330,0.31152554,57155.0,57145.0,0.181]
[1723752037559,0.17155454,57155.0,57145.0,0.181]
[1723752037998,0.001,57156.0,57145.0,0.320993]
[1723752038218,0.001,57156.0,57148.0,0.139986]
[1723752038429,0.001,57156.0,57151.0,0.3037]
[1723752038659,0.28080011,57164.0,57151.0,0.3037]
[1723752038864,0.27155454,57163.0,57152.0,0.03037]
[1723752039084,0.00090311,57164.0,57152.0,0.03037]
[1723752039085,0.001,57157.0,57155.0,0.139969]
[1723752039310,0.001,57157.0,57151.0,0.443678]
[1723752039764,0.00090311,57164.0,57153.0,0.139974]
[1723752040190,0.001,57156.0,57154.0,0.07586184]
[1723752040399,0.001,57156.0,57151.0,0.31491641]
[1723752040613,0.47905454,57156.0,57146.0,0.3037]
[1723752040840,0.47905454,57156.0,57140.0,0.3037]
[1723752040841,0.279974,57149.0,57140.0,0.3037]
[1723752041044,0.279974,57149.0,57134.0,0.4787]
[1723752041045,0.3075,57144.0,57134.0,0.4787]
[1723752041295,0.17155454,57143.0,57134.0,0.4787]
[1723752041573,0.140019,57135.0,57134.0,0.4787]
[1723752041812,0.140019,57135.0,57121.0,0.4787]
[1723752041813,0.47905454,57135.0,57121.0,0.4787]
[1723752042052,0.140027,57132.0,57121.0,0.4787]
[1723752042285,0.140027,57132.0,57120.0,0.010861]
[1723752042515,0.1,57142.0,57131.0,0.140028]
[1723752042751,0.1,57148.0,57136.0,0.1949]
[1723752042983,0.1,57153.0,57141.0,0.08577727]
[1723752043228,0.51466362,57154.0,57138.0,0.280022]
[1723752043229,0.17155454,57151.0,57138.0,0.280022]
[1723752043515,0.01,57143.0,57139.0,0.280018]
[1723752043743,0.003,57142.0,57141.0,0.53278127]
[1723752043977,0.003,57142.0,57141.0,1.09279927]
[1723752044208,0.003,57142.0,57141.0,0.53278127]
[1723752044898,0.003,57142.0,57141.0,0.54078127]
[1723752044899,0.004,57142.0,57141.0,0.54078127]
[1723752045147,0.001,57142.0,57141.0,0.63128639]
[1723752045382,0.001,57142.0,57141.0,0.40077727]
[1723752045845,0.002,57142.0,57141.0,0.82379027]
[1723752046082,0.002,57142.0,57141.0,1.63974184]
[1723752046324,0.002,57142.0,57141.0,1.35773284]
[1723752046562,0.00090311,57157.0,57151.0,0.139979]
[1723752046818,0.00090311,57157.0,57142.0,0.5127]
[1723752046819,0.00090311,57157.0,57147.0,0.08577727]
[1723752047064,0.00090311,57157.0,57143.0,0.2701157]
[1723752047340,0.00090311,57157.0,57147.0,0.08577727]
[1723752047793,0.00090311,57157.0,57153.0,0.08577727]
[1723752048008,0.00190311,57157.0,57156.0,0.676402]
[1723752048216,0.00190311,57157.0,57156.0,1.06969038]
[1723752048426,0.00090311,57157.0,57156.0,0.50982038]
[1723752048661,0.00190311,57157.0,57156.0,0.78975538]
[1723752049105,0.00190311,57157.0,57156.0,0.80175538]
[1723752049359,0.00190311,57157.0,57156.0,1.52117992]
[1723752049580,0.00190311,57157.0,57156.0,1.24124492]
[1723752049792,0.00190311,57157.0,57156.0,1.28660537]
[1723752050043,0.00090311,57157.0,57156.0,1.27460537]
[1723752050264,0.00190311,57157.0,57156.0,1.29660537]
[1723752050687,0.00090311,57157.0,57156.0,1.2846048]
[1723752051092,0.00190311,57157.0,57156.0,1.2976048]
[1723752051303,0.00190311,57157.0,57156.0,1.2996048]
[1723752051518,0.00090311,57164.0,57163.0,0.419851]
[1723752051940,0.00090311,57164.0,57163.0,0.699752]
[1723752052145,0.00090311,57164.0,57163.0,0.419851]
[1723752052570,0.00090311,57164.0,57163.0,1.63170182]
[1723752052787,0.00090311,57164.0,57163.0,1.73170182]
[1723752052999,0.00090311,57164.0,57163.0,1.91625636]
[1723752053206,0.00090311,57164.0,57163.0,1.98615625]
[1723752053422,0.000902,57184.0,57175.0,0.002]
[1723752053651,0.000902,57184.0,57176.0,0.139918]
[1723752053652,0.51466362,57177.0,57176.0,0.139918]
[1723752053850,0.000902,57184.0,57177.0,0.139915]
[1723752054060,0.000902,57184.0,57175.0,0.02565]
[1723752054061,0.140802,57184.0,57175.0,0.02565]
[1723752054275,0.140802,57184.0,57165.0,0.03482523]
[1723752054276,0.139907,57181.0,57168.0,0.2565]
[1723752054497,0.25733181,57183.0,57170.0,0.139933]
[1723752054768,0.17155454,57183.0,57170.0,0.279866]
[1723752055217,0.17155454,57183.0,57169.0,0.05585814]
[1723752055218,0.000902,57184.0,57174.0,0.279845]
[1723752055220,0.000902,57184.0,57175.0,0.139919]
[1723752055430,0.000902,57184.0,57176.0,0.139918]
[1723752055634,0.000902,57184.0,57173.0,0.279851]
[1723752055845,0.000902,57184.0,57173.0,0.04932251]
[1723752055846,0.25733181,57183.0,57173.0,0.04932251]
[1723752056060,0.08577727,57177.0,57165.0,0.02219246]
[1723752056288,0.279852,57173.0,57163.0,0.014]
[1723752056488,0.35685454,57176.0,57163.0,0.014]
[1723752056489,0.17155454,57172.0,57163.0,0.014]
[1723752056699,0.2567,57180.0,57165.0,0.2754]
[1723752056908,0.2567,57180.0,57166.0,0.02894]
[1723752057117,0.2567,57180.0,57173.0,0.139925]
[1723752057333,0.2567,57180.0,57170.0,0.279866]
[1723752057574,0.2567,57180.0,57171.0,0.0559744]
[1723752057823,0.2567,57180.0,57172.0,0.1973]
[1723752058037,0.2567,57186.0,57174.0,0.279846]
[1723752058241,0.2567,57186.0,57175.0,0.139919]
[1723752058449,0.2567,57186.0,57169.0,0.02219207]
[1723752058450,0.001,57177.0,57176.0,0.014]
[1723752058883,0.53649,57186.0,57174.0,0.01112139]
[1723752059095,0.279803,57183.0,57168.0,0.618637]
[1723752059303,0.139914,57178.0,57168.0,0.4787]
[1723752059520,0.17155454,57183.0,57175.0,0.002]
[1723752059924,0.000902,57184.0,57173.0,0.139925]
[1723752060131,0.004902,57184.0,57169.0,0.17505206]
[1723752060334,0.004902,57184.0,57168.0,0.48975638]
[1723752060335,0.139909,57180.0,57170.0,0.09788257]
[1723752060541,0.008902,57184.0,57171.0,0.28335862]
[1723752060750,0.008902,57184.0,57172.0,0.08709976]
[1723752060953,0.008902,57184.0,57174.0,0.139923]
[1723752061157,0.004902,57184.0,57174.0,0.139923]
[1723752061363,0.004902,57184.0,57170.0,0.37774757]
[1723752061364,0.17155454,57183.0,57166.0,0.22624]
[1723752061622,0.17155454,57183.0,57157.0,0.1]
[1723752061623,0.2567,57175.0,57168.0,0.4787]
[1723752061839,0.2597,57183.0,57173.0,0.139925]
[1723752062044,0.2597,57183.0,57168.0,0.4787]
[1723752062045,0.2567,57183.0,57169.0,0.279868]
[1723752062259,0.2567,57183.0,57171.0,0.279861]
[1723752062465,0.399602,57183.0,57170.0,0.409532]
[1723752062701,0.399602,57183.0,57168.0,0.4787]
[1723752062702,0.25733181,57182.0,57168.0,0.4787]
[1723752062910,0.25733181,57182.0,57168.0,0.4847]
[1723752062911,0.279823,57179.0,57168.0,0.4847]
[1723752063126,0.023,57181.0,57168.0,0.4847]
[1723752063127,0.139935,57169.0,57168.0,0.4847]
[1723752063337,0.139935,57169.0,57158.0,0.4787]
[1723752063338,0.139946,57165.0,57158.0,0.4787]
[1723752063544,0.139946,57165.0,57154.0,0.1817]
[1723752063545,0.17155454,57168.0,57154.0,0.1817]
[1723752063757,0.17155454,57168.0,57154.0,0.27972]
[1723752063758,0.13995,57164.0,57154.0,0.27972]
[1723752063977,0.17155454,57168.0,57155.0,0.075842]
[1723752064198,0.2531,57173.0,57155.0,0.075842]
[1723752064199,0.2531,57173.0,57156.0,0.17155454]
[1723752064411,0.2531,57173.0,57154.0,0.01109825]
[1723752064412,0.2784,57170.0,57154.0,0.01109825]
[1723752064617,0.279882,57167.0,57154.0,0.01109825]
[1723752064830,0.17155454,57167.0,57154.0,0.00349859]
[1723752065039,0.2784,57170.0,57155.0,0.33788308]
[1723752065279,0.2784,57170.0,57165.0,0.139945]
[1723752065472,0.2784,57170.0,57161.0,0.139955]
[1723752065718,0.2784,57170.0,57161.0,0.21578963]
[1723752065719,0.2804,57170.0,57161.0,0.21578963]
[1723752065933,0.2804,57170.0,57162.0,0.139952]
[1723752066133,0.2804,57170.0,57165.0,0.139945]
[1723752066134,0.002,57170.0,57165.0,0.139945]
[1723752066345,0.002,57170.0,57165.0,0.002]
[1723752066633,0.141934,57170.0,57165.0,0.002]
[1723752066865,0.4473,57174.0,57165.0,0.002]
[1723752066866,0.27986,57172.0,57165.0,0.002]
[1723752067131,0.17155454,57172.0,57165.0,0.002]
[1723752067590,0.17155454,57172.0,57165.0,0.01528842]
[1723752067824,0.17155454,57172.0,57161.0,0.01093124]
[1723752068070,0.002,57170.0,57162.0,0.139952]
[1723752068319,0.002,57170.0,57155.0,0.31064608]
[1723752068566,0.002,57170.0,57157.0,0.279926]
[1723752068820,0.650229,57166.0,57165.0,0.003]
[1723752069070,0.628543,57166.0,57165.0,0.003]
[1723752069282,0.628543,57166.0,57150.0,0.01143676]
[1723752069283,0.2582,57166.0,57150.0,0.01143676]
[1723752069503,0.2582,57166.0,57151.0,0.279959]
[1723752069706,0.2582,57166.0,57152.0,0.08927599]
[1723752069914,0.2582,57166.0,57153.0,0.42795454]
[1723752070120,0.2582,57166.0,57164.0,0.00082]
[1723752070335,0.279852,57173.0,57164.0,0.00082]
[1723752070336,0.139927,57173.0,57164.0,0.00082]
[1723752070548,0.17155454,57172.0,57164.0,0.019962]
[1723752070958,0.002,57170.0,57165.0,0.003]
[1723752071170,0.17155454,57172.0,57165.0,0.003]
[1723752071378,0.13994,57168.0,57165.0,0.003]
[1723752071588,0.699715,57166.0,57165.0,0.003]
[1723752072006,0.45005454,57167.0,57165.0,0.003]
[1723752072217,0.45005454,57167.0,57164.0,0.00082]
[1723752072425,0.2785,57167.0,57164.0,0.00082]
[1723752072630,0.139944,57166.0,57164.0,0.00082]
[1723752072846,0.2785,57167.0,57164.0,0.00082]
[1723752073082,0.418441,57167.0,57164.0,0.00082]
[1723752073278,0.2785,57167.0,57164.0,0.00082]
[1723752073486,0.2785,57167.0,57164.0,0.00282]
[1723752073900,0.2785,57167.0,57165.0,0.002]
[1723752074104,0.419829,57166.0,57165.0,0.002]
[1723752074327,0.699727,57165.0,57164.0,0.00282]
[1723752074532,0.89428154,57165.0,57164.0,0.00382]
[1723752074738,1.55367254,57165.0,57164.0,0.00382]
[1723752074947,1.27378154,57165.0,57164.0,0.00282]
[1723752075764,1.27578154,57165.0,57164.0,0.00082]
[1723752075984,0.2815,57165.0,57164.0,0.00082]
[1723752076544,0.421445,57165.0,57164.0,0.00082]
[1723752077170,0.703336,57165.0,57164.0,0.00082]
[1723752077375,1.38518154,57165.0,57164.0,0.00082]
[1723752078637,1.66507254,57165.0,57164.0,0.00082]
[1723752079034,1.87647254,57165.0,57164.0,0.00082]
[1723752079695,2.15636354,57165.0,57164.0,0.00082]
[1723752079927,2.25636354,57165.0,57164.0,0.00082]
[1723752080379,2.56363355,57165.0,57164.0,0.00082]
[1723752080687,2.28174255,57165.0,57164.0,0.00082]
[1723752080879,2.00185155,57165.0,57164.0,0.00082]
[1723752081081,1.99985155,57165.0,57164.0,0.00082]
[1723752081313,1.69258154,57165.0,57164.0,0.00182]
[1723752081524,1.97647254,57165.0,57164.0,0.00182]
[1723752081775,1.66958154,57165.0,57164.0,0.00082]
[1723752082171,1.95747254,57165.0,57164.0,0.00182]
[1723752082554,1.95347254,57165.0,57164.0,0.00182]
[1723752082757,1.67358154,57165.0,57164.0,0.00282]
[1723752082935,1.68558154,57165.0,57164.0,0.00282]
[1723752083141,1.67058154,57165.0,57164.0,0.00282]
[1723752083341,1.69358154,57165.0,57164.0,0.00282]
[1723752083934,1.68958154,57165.0,57164.0,0.00182]
[1723752084134,1.69658154,57165.0,57164.0,0.00282]
[1723752084350,1.10529054,57165.0,57164.0,0.00282]
[1723752084557,1.09829054,57165.0,57164.0,0.00182]
[1723752084682,1.10529054,57165.0,57164.0,0.00282]
[1723752085113,0.000902,57166.0,57164.0,0.00082]
[1723752085441,0.000902,57166.0,57164.0,0.00282]
[1723752085442,0.017,57165.0,57164.0,0.00282]
[1723752085674,0.017,57165.0,57164.0,0.00182]
[1723752086073,0.017,57165.0,57164.0,0.421664]
[1723752086309,0.017,57165.0,57164.0,1.19047623]
[1723752086518,0.000902,57166.0,57165.0,0.955927]
[1723752086741,0.000902,57166.0,57165.0,1.61534236]
[1723752086980,0.51466362,57183.0,57165.0,0.44994709]
[1723752087156,0.51466362,57183.0,57166.0,0.55940636]
[1723752087394,0.51466362,57183.0,57172.0,0.139927]
[1723752087606,0.51466362,57183.0,57169.0,0.279871]
[1723752087831,0.000902,57184.0,57176.0,0.139918]
[1723752088041,0.000902,57184.0,57176.0,0.396118]
[1723752088266,0.000902,57184.0,57176.0,0.3237961]
[1723752088482,0.000902,57184.0,57176.0,0.2562]
[1723752089001,0.000902,57184.0,57176.0,0.86965235]
[1723752089209,0.000902,57184.0,57176.0,0.89984249]
[1723752089210,0.001902,57177.0,57176.0,0.89984249]